[Event "7° Rencontres Internationales des Echecs Francophones"]
[Site "PARIS, France"]
[Date "2019.08.10"]
[Round "5.10"]
[White "David, Alberto"]
[Black "Daurelle, Herve"]
[Result "1-0"]
[TimeControl "90'+30' + 30seconds/move"]
[WhiteElo "2554"]
[BlackElo "2179"]

1. e4 {[%clk 00:05:04]} {[%emt 00:00:02]} e5 {[%clk 00:04:57]} {[%emt
00:00:09]} 2. Nf3 {[%clk 00:05:06]} {[%emt 00:00:02]} Nc6 {[%clk 00:04:59]} 3.
Bb5 {[%clk 00:05:08]} {[%emt 00:00:02]} a6 {[%clk 00:05:01]} {[%emt 00:00:01]}
4. Ba4 {[%clk 00:05:10]} Nf6 {[%clk 00:05:02]} {[%emt 00:00:02]} 5. d3 {[%clk
00:05:12]} b5 {[%clk 00:04:56]} {[%emt 00:00:09]} 6. Bb3 {[%clk 00:05:14]} Be7
{[%clk 00:04:58]} 7. O-O {[%clk 00:05:13]} {[%emt 00:00:03]} d6 {[%clk
00:05:00]} 8. c3 {[%clk 00:05:12]} {[%emt 00:00:06]} Na5 {[%clk 00:04:59]}
{[%emt 00:00:04]} 9. Bc2 {[%clk 00:05:14]} {[%emt 00:00:02]} c5 {[%clk
00:05:01]} {[%emt 00:00:01]} 10. Re1 {[%clk 00:05:14]} {[%emt 00:00:02]} O-O
{[%clk 00:04:56]} {[%emt 00:00:08]} 11. Nbd2 {[%clk 00:05:16]} {[%emt
00:00:01]} Nd7 {[%clk 00:04:58]} 12. Nf1 {[%clk 00:05:15]} {[%emt 00:00:08]}
Nc6 {[%clk 00:04:59]} 13. Ng3 {[%clk 00:04:21]} {[%emt 00:00:56]} g6 {[%clk
00:04:44]} {[%emt 00:00:18]} 14. Bh6 {[%clk 00:04:20]} {[%emt 00:00:04]} Re8
{[%clk 00:04:47]} 15. Qd2 {[%clk 00:04:21]} {[%emt 00:00:02]} Bf6 {[%clk
00:04:44]} {[%emt 00:00:05]} 16. h3 {[%clk 00:04:16]} {[%emt 00:00:09]} Nf8
{[%clk 00:04:12]} {[%emt 00:00:35]} 17. Nh2 {[%clk 00:04:02]} {[%emt 00:00:17]}
Ne6 {[%clk 00:03:54]} {[%emt 00:00:21]} 18. Ng4 {[%clk 00:04:00]} {[%emt
00:00:05]} Bg5 {[%clk 00:03:54]} {[%emt 00:00:03]} 19. Bxg5 {[%clk 00:04:01]}
{[%emt 00:00:02]} Nxg5 {[%clk 00:03:53]} {[%emt 00:00:04]} 20. f4 {[%clk
00:04:02]} {[%emt 00:00:03]} Bxg4 {[%clk 00:03:43]} {[%emt 00:00:12]} 21. fxg5
{[%clk 00:03:51]} {[%emt 00:00:14]} Be6 {[%clk 00:03:39]} {[%emt 00:00:08]} 22.
Rf1 {[%clk 00:03:52]} {[%emt 00:00:01]} c4 {[%clk 00:03:13]} {[%emt 00:00:30]}
23. dxc4 {[%clk 00:03:23]} {[%emt 00:00:32]} Bxc4 {[%clk 00:03:05]} {[%emt
00:00:10]} 24. Rf6 {[%clk 00:03:15]} {[%emt 00:00:10]} Re6 {[%clk 00:01:59]}
{[%emt 00:01:10]} 25. b3 {[%clk 00:02:21]} {[%emt 00:00:57]} Rxf6 {[%clk
00:01:57]} {[%emt 00:00:05]} 26. gxf6 {[%clk 00:02:23]} Be6 {[%clk 00:01:33]}
{[%emt 00:00:26]} 27. Nh5 {[%clk 00:02:23]} {[%emt 00:00:03]} Kh8 {[%clk
00:01:18]} {[%emt 00:00:18]} 28. Qh6 {[%clk 00:02:22]} {[%emt 00:00:03]} Qf8
{[%clk 00:01:10]} {[%emt 00:00:11]} 29. Ng7 {[%clk 00:02:23]} {[%emt 00:00:02]}
Ne7 {[%clk 00:01:00]} {[%emt 00:00:14]} 30. Qd2 {[%clk 00:01:52]} {[%emt
00:00:34]} Ng8 {[%clk 00:00:53]} {[%emt 00:00:09]} 31. Nxe6 {[%clk 00:01:53]}
{[%emt 00:00:03]} fxe6 {[%clk 00:00:50]} {[%emt 00:00:06]} 32. f7 {[%clk
00:01:51]} {[%emt 00:00:05]} Nh6 {[%clk 00:00:45]} {[%emt 00:00:08]} 33. Qg5
{[%clk 00:01:32]} {[%emt 00:00:21]} Nxf7 {[%clk 00:00:36]} {[%emt 00:00:13]} 34.
Qf6+ {[%clk 00:01:34]} {[%emt 00:00:01]} Kg8 {[%clk 00:00:23]} {[%emt
00:00:16]} 35. Qxe6 {[%clk 00:01:35]} {[%emt 00:00:02]} Qe8 {[%clk 00:00:13]}
{[%emt 00:00:14]} 36. Qd5 {[%clk 00:01:19]} {[%emt 00:00:19]} Rc8 {[%clk
00:00:15]} 37. b4 {[%clk 00:01:21]} Kg7 {[%clk 00:00:10]} {[%emt 00:00:07]} 38.
Bb3 {[%clk 00:01:11]} {[%emt 00:00:14]} Ng5 {[%clk 00:00:06]} {[%emt 00:00:07]}
39. Rf1 {[%clk 00:01:09]} {[%emt 00:00:05]} Rc7 {[%clk 00:00:00]} {[%emt
00:00:06]} 1-0

[Event "7° Rencontres Internationales des Echecs Francophones"]
[Site "PARIS, France"]
[Date "2019.08.10"]
[Round "5.1"]
[White "Chabanon, Jean-Luc"]
[Black "Gurevich, Mikhail"]
[Result "0-1"]
[TimeControl "90'+30' + 30seconds/move"]
[WhiteElo "2448"]
[BlackElo "2559"]

1. d4 {[%clk 00:05:04]} d6 {[%clk 00:05:03]} {[%emt 00:00:03]} 2. e4 {[%clk
00:04:59]} {[%emt 00:00:08]} Nf6 {[%clk 00:05:05]} {[%emt 00:00:02]} 3. Nc3
{[%clk 00:05:01]} {[%emt 00:00:02]} g6 {[%clk 00:05:07]} 4. Nf3 {[%clk
00:04:51]} {[%emt 00:00:13]} Bg7 {[%clk 00:05:08]} {[%emt 00:00:01]} 5. Be2
{[%clk 00:04:53]} {[%emt 00:00:01]} O-O {[%clk 00:05:09]} {[%emt 00:00:02]} 6.
O-O {[%emt 00:00:01]} Nc6 7. d5 {[%clk 00:04:53]} {[%emt 00:00:05]} Nb8 {[%clk
00:05:14]} 8. Bg5 {[%clk 00:04:52]} {[%emt 00:00:04]} c6 {[%clk 00:05:13]}
{[%emt 00:00:03]} 9. Qd2 {[%clk 00:04:36]} {[%emt 00:00:19]} b6 {[%clk
00:05:08]} {[%emt 00:00:09]} 10. Rfe1 {[%clk 00:03:54]} {[%emt 00:00:45]} Bb7
{[%clk 00:05:06]} {[%emt 00:00:04]} 11. Bf1 {[%clk 00:03:32]} {[%emt 00:00:26]}
a6 {[%clk 00:04:51]} {[%emt 00:00:18]} 12. Rad1 {[%clk 00:03:12]} {[%emt
00:00:23]} Nbd7 {[%clk 00:04:50]} {[%emt 00:00:04]} 13. dxc6 {[%clk 00:02:58]}
{[%emt 00:00:17]} Bxc6 {[%clk 00:04:51]} {[%emt 00:00:02]} 14. Nd5 {[%clk
00:02:57]} {[%emt 00:00:04]} b5 {[%clk 00:04:42]} {[%emt 00:00:11]} 15. c3
{[%clk 00:02:39]} {[%emt 00:00:21]} Rc8 {[%clk 00:04:36]} {[%emt 00:00:09]} 16.
Nxf6+ {[%clk 00:01:59]} {[%emt 00:00:44]} Nxf6 {[%clk 00:04:35]} {[%emt
00:00:04]} 17. Bxf6 {[%clk 00:01:09]} {[%emt 00:00:53]} Bxf6 {[%clk 00:04:33]}
{[%emt 00:00:04]} 18. e5 {[%clk 00:00:54]} {[%emt 00:00:19]} dxe5 {[%clk
00:04:16]} {[%emt 00:00:20]} 19. Nxe5 {[%clk 00:00:54]} {[%emt 00:00:04]} Qxd2
{[%clk 00:04:00]} {[%emt 00:00:19]} 20. Rxd2 {[%clk 00:00:55]} {[%emt
00:00:02]} Bg5 {[%clk 00:03:55]} {[%emt 00:00:07]} 21. Rd4 {[%clk 00:00:45]}
{[%emt 00:00:13]} Ba8 {[%clk 00:03:24]} {[%emt 00:00:34]} 22. f4 {[%clk
00:00:46]} {[%emt 00:00:01]} Bf6 {[%clk 00:03:25]} {[%emt 00:00:01]} 23. a4
{[%clk 00:00:45]} {[%emt 00:00:05]} bxa4 {[%clk 00:02:22]} {[%emt 00:01:06]} 24.
Rxa4 {[%clk 00:00:46]} {[%emt 00:00:02]} Rfd8 {[%clk 00:02:23]} {[%emt
00:00:02]} 25. Bxa6 {[%clk 00:00:40]} {[%emt 00:00:09]} Rb8 {[%clk 00:02:23]}
{[%emt 00:00:03]} 26. b4 {[%clk 00:00:38]} {[%emt 00:00:06]} g5 {[%clk
00:01:59]} {[%emt 00:00:27]} 27. fxg5 {[%clk 00:00:26]} {[%emt 00:00:15]} Bxg5
{[%clk 00:01:58]} {[%emt 00:00:04]} 28. Nf3 {[%clk 00:00:13]} {[%emt 00:00:17]}
Bxf3 {[%clk 00:01:43]} {[%emt 00:00:18]} 29. gxf3 {[%clk 00:00:14]} {[%emt
00:00:02]} Bd2 {[%clk 00:01:45]} 30. Re2 {[%clk 00:00:13]} {[%emt 00:00:04]}
Bxc3 {[%clk 00:01:45]} {[%emt 00:00:02]} 31. b5 {[%clk 00:00:09]} {[%emt
00:00:08]} e6 {[%clk 00:01:40]} {[%emt 00:00:07]} 32. Rg4+ {[%clk 00:00:08]}
{[%emt 00:00:04]} Kf8 {[%clk 00:01:40]} {[%emt 00:00:02]} 33. Kg2 {[%clk
00:00:10]} {[%emt 00:00:02]} Ke7 {[%clk 00:01:37]} {[%emt 00:00:06]} 34. Rc2
{[%clk 00:00:12]} {[%emt 00:00:01]} Ba5 {[%clk 00:01:36]} {[%emt 00:00:04]} 35.
Rgc4 {[%clk 00:00:09]} {[%emt 00:00:05]} Rd1 {[%clk 00:01:19]} {[%emt
00:00:19]} 36. Rc8 {[%clk 00:00:11]} {[%emt 00:00:02]} Rxc8 {[%clk 00:01:20]}
{[%emt 00:00:02]} 37. Rxc8 {[%clk 00:00:13]} {[%emt 00:00:01]} Rd2+ {[%clk
00:01:20]} {[%emt 00:00:03]} 38. Kg3 {[%clk 00:00:14]} {[%emt 00:00:02]} Rb2
{[%clk 00:01:22]} 39. h4 {[%clk 00:00:12]} {[%emt 00:00:06]} Be1+ {[%clk
00:01:18]} {[%emt 00:00:07]} 40. Kh3 {[%clk 00:00:13]} {[%emt 00:00:01]} Rb4
{[%clk 00:01:20]} {[%emt 00:00:02]} 41. Rc7+ {[%clk 00:00:15]} {[%emt
00:00:02]} Kf6 {[%clk 00:01:21]} {[%emt 00:00:01]} 42. h5 {[%clk 00:00:14]}
{[%emt 00:00:04]} Bf2 {[%clk 00:01:15]} {[%emt 00:00:09]} 43. Kg2 {[%clk
00:00:09]} {[%emt 00:00:08]} Bd4 {[%clk 00:01:16]} {[%emt 00:00:02]} 44. Rc6
{[%clk 00:00:09]} {[%emt 00:00:03]} h6 {[%clk 00:01:16]} {[%emt 00:00:03]} 45.
f4 {[%clk 00:00:09]} {[%emt 00:00:03]} Be3 {[%clk 00:01:13]} {[%emt 00:00:04]}
46. Kf3 {[%clk 00:00:11]} {[%emt 00:00:03]} Bxf4 {[%clk 00:01:06]} {[%emt
00:00:10]} 47. b6 {[%clk 00:00:13]} Be5 {[%clk 00:01:07]} {[%emt 00:00:02]} 48.
b7 {[%clk 00:00:14]} {[%emt 00:00:02]} Kg5 {[%clk 00:01:06]} {[%emt 00:00:03]}
49. Rc4 {[%clk 00:00:14]} {[%emt 00:00:04]} Rb3+ {[%clk 00:01:06]} {[%emt
00:00:02]} 50. Ke4 {[%clk 00:00:14]} {[%emt 00:00:04]} Bd6 {[%clk 00:01:07]}
{[%emt 00:00:02]} 51. Rc6 {[%clk 00:00:15]} {[%emt 00:00:02]} Rb4+ {[%clk
00:01:06]} {[%emt 00:00:05]} 52. Kd3 {[%clk 00:00:17]} {[%emt 00:00:01]} Be5
{[%clk 00:01:03]} {[%emt 00:00:06]} 53. Rc5 {[%clk 00:00:18]} {[%emt 00:00:02]}
Kf5 {[%clk 00:01:04]} {[%emt 00:00:02]} 54. Rb5 {[%clk 00:00:19]} {[%emt
00:00:02]} Rxb5 {[%clk 00:01:04]} {[%emt 00:00:03]} 55. Bxb5 {[%clk 00:00:21]}
Kg5 {[%clk 00:01:00]} {[%emt 00:00:06]} 56. Be8 {[%clk 00:00:21]} {[%emt
00:00:03]} f5 {[%clk 00:01:02]} {[%emt 00:00:01]} 57. Bd7 {[%clk 00:00:20]}
{[%emt 00:00:05]} Kf6 {[%clk 00:01:04]} 58. Ke3 {[%clk 00:00:20]} {[%emt
00:00:03]} Bb8 {[%clk 00:01:05]} {[%emt 00:00:02]} 59. Kf3 {[%clk 00:00:18]}
{[%emt 00:00:04]} e5 {[%clk 00:01:06]} {[%emt 00:00:02]} 60. Bc6 {[%clk
00:00:20]} {[%emt 00:00:02]} Ke6 {[%clk 00:01:08]} 61. Ke3 {[%clk 00:00:15]}
{[%emt 00:00:06]} Ba7+ {[%clk 00:01:10]} {[%emt 00:00:03]} 62. Kd3 {[%clk
00:00:17]} Kf6 {[%clk 00:01:11]} {[%emt 00:00:02]} 63. Bd5 {[%clk 00:00:11]}
{[%emt 00:00:10]} Kg5 {[%clk 00:01:12]} {[%emt 00:00:01]} 64. Ke2 {[%clk
00:00:10]} {[%emt 00:00:05]} e4 {[%clk 00:01:13]} 65. Be6 {[%clk 00:00:11]}
{[%emt 00:00:03]} Kf4 {[%clk 00:01:15]} 66. Kf1 {[%clk 00:00:11]} {[%emt
00:00:03]} Ke5 {[%clk 00:01:12]} {[%emt 00:00:06]} 67. Bd7 {[%clk 00:00:12]}
{[%emt 00:00:02]} f4 {[%clk 00:01:14]} {[%emt 00:00:01]} 68. Bc6 {[%clk
00:00:12]} {[%emt 00:00:03]} f3 {[%clk 00:01:15]} {[%emt 00:00:01]} 69. Ke1
{[%clk 00:00:11]} {[%emt 00:00:05]} Kf4 {[%clk 00:01:16]} {[%emt 00:00:02]} 70.
Kf1 {[%clk 00:00:11]} {[%emt 00:00:04]} e3 {[%clk 00:01:18]} 71. Ke1 {[%clk
00:00:10]} {[%emt 00:00:05]} Bb8 {[%clk 00:01:17]} {[%emt 00:00:04]} 72. Bb5
{[%clk 00:00:10]} {[%emt 00:00:03]} Kg3 {[%clk 00:01:18]} {[%emt 00:00:02]} 73.
Kf1 {[%clk 00:00:12]} {[%emt 00:00:01]} Bc7 {[%clk 00:01:18]} {[%emt 00:00:03]}
74. Bc4 {[%clk 00:00:14]} Kf4 {[%clk 00:01:19]} 75. Bb5 {[%clk 00:00:16]}
{[%emt 00:00:02]} Ke5 {[%clk 00:01:19]} {[%emt 00:00:03]} 76. Bc6 {[%clk
00:00:07]} {[%emt 00:00:12]} Kf4 {[%clk 00:01:16]} {[%emt 00:00:05]} 77. Bb5
{[%clk 00:00:10]} Kg3 {[%clk 00:01:11]} {[%emt 00:00:08]} 78. Bc4 {[%clk
00:00:11]} {[%emt 00:00:02]} Kg4 {[%clk 00:01:11]} {[%emt 00:00:02]} 79. Bd3
{[%clk 00:00:04]} {[%emt 00:00:10]} Kxh5 {[%clk 00:01:11]} {[%emt 00:00:03]}
0-1



[ePGN "0.1;DGT LiveChess/2.2.4"]

[Event "7° Rencontres Internationales des Echecs Francophones"]
[Site "PARIS, France"]
[Date "2019.08.10"]
[Round "6.1"]
[White "Gurevich, Mikhail"]
[Black "Hamdouchi, Hicham"]
[Result "1-0"]
[TimeControl "90'+30' + 30seconds/move"]
[WhiteElo "2559"]
[BlackElo "2514"]

1. c4 {[%clk 00:05:04]} {[%emt 00:00:01]} g6 {[%clk 00:05:04]} {[%emt
00:00:02]} 2. Nc3 {[%clk 00:05:06]} {[%emt 00:00:03]} Bg7 {[%clk 00:05:05]} 3.
g3 {[%clk 00:05:08]} c5 {[%clk 00:05:02]} {[%emt 00:00:07]} 4. Bg2 {[%clk
00:05:10]} {[%emt 00:00:01]} Nc6 {[%clk 00:05:04]} {[%emt 00:00:02]} 5. a3
{[%clk 00:05:11]} {[%emt 00:00:02]} d6 {[%clk 00:05:01]} {[%emt 00:00:05]} 6.
Rb1 {[%clk 00:05:12]} {[%emt 00:00:02]} e6 {[%clk 00:04:37]} {[%emt 00:00:27]}
7. b4 {[%clk 00:04:56]} {[%emt 00:00:19]} Nge7 {[%clk 00:04:38]} {[%emt
00:00:02]} 8. e3 {[%clk 00:04:57]} {[%emt 00:00:02]} O-O {[%clk 00:04:31]}
{[%emt 00:00:10]} 9. Nge2 {[%clk 00:04:59]} {[%emt 00:00:01]} Rb8 {[%clk
00:04:21]} {[%emt 00:00:13]} 10. O-O {[%clk 00:04:37]} {[%emt 00:00:25]} b6
{[%clk 00:04:19]} {[%emt 00:00:05]} 11. d3 {[%clk 00:03:59]} {[%emt 00:00:41]}
Bb7 {[%clk 00:04:14]} {[%emt 00:00:08]} 12. e4 {[%clk 00:03:59]} {[%emt
00:00:03]} Qd7 {[%clk 00:03:49]} {[%emt 00:00:28]} 13. Qa4 {[%clk 00:03:59]}
{[%emt 00:00:03]} Rfd8 {[%clk 00:03:42]} {[%emt 00:00:11]} 14. Rd1 {[%clk
00:04:01]} {[%emt 00:00:02]} Nd4 {[%clk 00:03:24]} {[%emt 00:00:21]} 15. Qxd7
{[%clk 00:03:51]} {[%emt 00:00:13]} Nxe2+ {[%clk 00:03:24]} {[%emt 00:00:02]}
16. Nxe2 {[%clk 00:03:50]} {[%emt 00:00:03]} Rxd7 {[%clk 00:03:26]} {[%emt
00:00:02]} 17. Be3 {[%clk 00:03:45]} {[%emt 00:00:05]} Rc8 {[%clk 00:03:01]}
{[%emt 00:00:29]} 18. Rd2 {[%clk 00:03:42]} {[%emt 00:00:08]} Nc6 {[%clk
00:02:46]} {[%emt 00:00:18]} 19. f4 {[%clk 00:03:31]} {[%emt 00:00:14]} f5
{[%clk 00:02:32]} {[%emt 00:00:17]} 20. exf5 {[%clk 00:02:21]} {[%emt
00:01:13]} gxf5 {[%clk 00:02:33]} {[%emt 00:00:02]} 21. h3 {[%clk 00:02:19]}
{[%emt 00:00:05]} Kf7 {[%clk 00:02:23]} {[%emt 00:00:14]} 22. g4 {[%clk
00:02:18]} {[%emt 00:00:04]} Nd4 {[%clk 00:02:06]} {[%emt 00:00:20]} 23. Bxd4
{[%clk 00:01:52]} {[%emt 00:00:28]} cxd4 {[%clk 00:01:47]} {[%emt 00:00:22]} 24.
Bxb7 {[%clk 00:01:52]} {[%emt 00:00:04]} Rxb7 {[%clk 00:01:48]} {[%emt
00:00:01]} 25. gxf5 {[%clk 00:01:54]} {[%emt 00:00:01]} exf5 {[%clk 00:01:49]}
{[%emt 00:00:02]} 26. Ng3 {[%clk 00:01:56]} Kf6 {[%clk 00:00:42]} {[%emt
00:01:11]} 27. Re1 {[%clk 00:01:17]} {[%emt 00:00:42]} Bh6 {[%clk 00:00:41]}
{[%emt 00:00:05]} 28. Rf2 {[%clk 00:01:19]} b5 {[%clk 00:00:26]} {[%emt
00:00:18]} 29. cxb5 {[%clk 00:01:08]} {[%emt 00:00:14]} Rxb5 {[%clk 00:00:27]}
{[%emt 00:00:01]} 30. h4 {[%clk 00:00:54]} {[%emt 00:00:17]} Rb6 {[%clk
00:00:18]} {[%emt 00:00:13]} 31. Rfe2 {[%clk 00:00:51]} {[%emt 00:00:05]} d5
{[%clk 00:00:21]} 32. Re5 {[%clk 00:00:52]} {[%emt 00:00:02]} Rc3 {[%clk
00:00:11]} {[%emt 00:00:13]} 33. Rxf5+ {[%clk 00:00:50]} {[%emt 00:00:05]} Kg6
{[%clk 00:00:13]} 34. h5+ {[%clk 00:00:50]} {[%emt 00:00:02]} Kg7 {[%clk
00:00:15]} 35. Re7+ {[%clk 00:00:50]} {[%emt 00:00:03]} Kg8 {[%clk 00:00:18]}
{[%emt 00:00:01]} 36. Re8+ {[%clk 00:00:51]} {[%emt 00:00:02]} Kg7 {[%clk
00:00:20]} 37. Rff8 {[%emt 00:00:13]} Rf6 {[%clk 00:00:17]} {[%emt 00:00:14]}
38. Nf5+ {[%clk 00:00:46]} {[%emt 00:00:04]} Rxf5 {[%clk 00:00:17]} {[%emt
00:00:03]} 39. Rxf5 {[%clk 00:00:48]} {[%emt 00:00:02]} Rxd3 {[%clk 00:00:18]}
{[%emt 00:00:02]} 40. Kg2 {[%clk 00:00:49]} {[%emt 00:00:02]} Rxa3 {[%clk
00:00:18]} {[%emt 00:00:04]} 41. Re7+ {[%clk 00:00:46]} {[%emt 00:00:05]} Kg8
{[%clk 00:00:20]} 42. Rxd5 {[%clk 00:00:43]} {[%emt 00:00:07]} 1-0

[Event "7° Rencontres Internationales des Echecs Francophones"]
[Site "PARIS, France"]
[Date "2019.08.10"]
[Round "6.5"]
[White "Le Goff, Ronan"]
[Black "David, Alberto"]
[Result "0-1"]
[TimeControl "90'+30' + 30seconds/move"]
[WhiteElo "2309"]
[BlackElo "2554"]

1. d4 {[%clk 00:05:04]} Nf6 {[%clk 00:05:04]} {[%emt 00:00:02]} 2. Bf4 {[%clk
00:05:05]} {[%emt 00:00:02]} b6 {[%clk 00:05:01]} {[%emt 00:00:07]} 3. Nc3
{[%clk 00:05:03]} {[%emt 00:00:05]} Bb7 {[%clk 00:05:02]} {[%emt 00:00:02]} 4.
f3 {[%clk 00:05:03]} {[%emt 00:00:03]} Nh5 {[%clk 00:04:31]} {[%emt 00:00:32]}
5. Bg5 {[%clk 00:04:52]} {[%emt 00:00:14]} h6 {[%clk 00:04:32]} {[%emt
00:00:03]} 6. Bc1 {[%clk 00:04:44]} {[%emt 00:00:11]} e5 {[%clk 00:04:30]}
{[%emt 00:00:06]} 7. Be3 {[%clk 00:04:12]} {[%emt 00:00:35]} Bb4 {[%clk
00:03:37]} {[%emt 00:00:56]} 8. dxe5 {[%clk 00:03:47]} {[%emt 00:00:27]} Qe7
{[%clk 00:03:39]} {[%emt 00:00:01]} 9. g4 {[%clk 00:03:13]} {[%emt 00:00:38]}
Nf6 {[%clk 00:03:41]} 10. Bd4 {[%clk 00:03:07]} {[%emt 00:00:09]} Nxg4 {[%clk
00:03:37]} {[%emt 00:00:07]} 11. fxg4 {[%clk 00:02:38]} {[%emt 00:00:32]} Bxh1
{[%clk 00:03:38]} {[%emt 00:00:02]} 12. Qd3 {[%clk 00:02:27]} {[%emt 00:00:14]}
Nc6 {[%clk 00:03:34]} {[%emt 00:00:07]} 13. a3 {[%clk 00:02:08]} {[%emt
00:00:22]} Bc5 {[%clk 00:03:15]} {[%emt 00:00:21]} 14. Bxc5 {[%clk 00:01:51]}
{[%emt 00:00:19]} Qxc5 {[%clk 00:03:13]} {[%emt 00:00:05]} 15. O-O-O {[%clk
00:01:38]} {[%emt 00:00:16]} Nxe5 {[%clk 00:02:54]} {[%emt 00:00:23]} 16. Qf5
{[%clk 00:01:00]} {[%emt 00:00:40]} O-O {[%clk 00:01:39]} {[%emt 00:01:19]} 17.
Nh3 {[%clk 00:01:01]} {[%emt 00:00:02]} Nc4 {[%clk 00:01:31]} {[%emt 00:00:10]}
18. Qxd7 {[%clk 00:00:19]} {[%emt 00:00:46]} Rad8 {[%clk 00:01:11]} {[%emt
00:00:23]} 19. Qxd8 {[%clk 00:00:18]} {[%emt 00:00:04]} Rxd8 {[%clk 00:01:12]}
{[%emt 00:00:01]} 20. Rxd8+ {[%clk 00:00:20]} {[%emt 00:00:02]} Kh7 {[%clk
00:01:14]} 21. Rd3 {[%clk 00:00:11]} {[%emt 00:00:12]} Ne3 {[%clk 00:01:04]}
{[%emt 00:00:13]} 22. Nf2 {[%clk 00:00:10]} {[%emt 00:00:04]} Nxf1 {[%clk
00:01:00]} {[%emt 00:00:08]} 23. Nxh1 {[%clk 00:00:10]} {[%emt 00:00:02]} Qg1
{[%clk 00:01:01]} 24. Ng3 {[%clk 00:00:07]} {[%emt 00:00:07]} Nxg3+ {[%clk
00:01:01]} {[%emt 00:00:03]} 0-1